Workbook

Sheet Лицевой
X1: № п/п | Y1: Наименование учреждения | Z1: адрес | AA1: ОКПО | AB1: БК | AC1: под-раздел | AD1: целевой статьи | AE1: вид расхода | AF1: Имя
X2: =#REF! ->  | Y2: =#REF! ->  | Z2: =#REF! ->  | AA2: =#REF! ->  | AB2: =#REF! ->  | AC2: =#REF! ->  | AD2: =#REF! ->  | AE2: =#REF! ->  | AF2: =#REF! -> 
F3: Заведующий муниципальным бюджетным дошкольным образовательным учреждением | X3: =#REF! ->  | Y3: =#REF! ->  | Z3: =#REF! ->  | AA3: =#REF! ->  | AB3: =#REF! ->  | AC3: =#REF! ->  | AD3: =#REF! ->  | AE3: =#REF! ->  | AF3: =#REF! -> 
X4: =#REF! ->  | Y4: =#REF! ->  | Z4: =#REF! ->  | AA4: =#REF! ->  | AB4: =#REF! ->  | AC4: =#REF! ->  | AD4: =#REF! ->  | AE4: =#REF! ->  | AF4: =#REF! -> 
I5: "Детский сад общеразвивающего вида № 16" | X5: =#REF! ->  | Y5: =#REF! ->  | Z5: =#REF! ->  | AA5: =#REF! ->  | AB5: =#REF! ->  | AC5: =#REF! ->  | AD5: =#REF! ->  | AE5: =#REF! ->  | AF5: =#REF! -> 
X6: =#REF! ->  | Y6: =#REF! ->  | Z6: =#REF! ->  | AA6: =#REF! ->  | AB6: =#REF! ->  | AC6: =#REF! ->  | AD6: =#REF! ->  | AE6: =#REF! ->  | AF6: =#REF! -> 
O7: Филонова Е.Е. | X7: =#REF! ->  | Y7: =#REF! ->  | Z7: =#REF! ->  | AA7: =#REF! ->  | AB7: =#REF! ->  | AC7: =#REF! ->  | AD7: =#REF! ->  | AE7: =#REF! ->  | AF7: =#REF! -> 
X8: =#REF! ->  | Y8: =#REF! ->  | Z8: =#REF! ->  | AA8: =#REF! ->  | AB8: =#REF! ->  | AC8: =#REF! ->  | AD8: =#REF! ->  | AE8: =#REF! ->  | AF8: =#REF! -> 
X9: =#REF! ->  | Y9: =#REF! ->  | Z9: =#REF! ->  | AA9: =#REF! ->  | AB9: =#REF! ->  | AC9: =#REF! ->  | AD9: =#REF! ->  | AE9: =#REF! ->  | AF9: =#REF! -> 
X10: =#REF! ->  | Y10: =#REF! ->  | Z10: =#REF! ->  | AA10: =#REF! ->  | AB10: =#REF! ->  | AC10: =#REF! ->  | AD10: =#REF! ->  | AE10: =#REF! ->  | AF10: =#REF! -> 
X11: =#REF! ->  | Y11: =#REF! ->  | Z11: =#REF! ->  | AA11: =#REF! ->  | AB11: =#REF! ->  | AC11: =#REF! ->  | AD11: =#REF! ->  | AE11: =#REF! ->  | AF11: =#REF! -> 
X12: =#REF! ->  | Y12: =#REF! ->  | Z12: =#REF! ->  | AA12: =#REF! ->  | AB12: =#REF! ->  | AC12: =#REF! ->  | AD12: =#REF! ->  | AE12: =#REF! ->  | AF12: =#REF! -> 
X13: =#REF! ->  | Y13: =#REF! ->  | Z13: =#REF! ->  | AA13: =#REF! ->  | AB13: =#REF! ->  | AC13: =#REF! ->  | AD13: =#REF! ->  | AE13: =#REF! ->  | AF13: =#REF! -> 
X14: =#REF! ->  | Y14: =#REF! ->  | Z14: =#REF! ->  | AA14: =#REF! ->  | AB14: =#REF! ->  | AC14: =#REF! ->  | AD14: =#REF! ->  | AE14: =#REF! ->  | AF14: =#REF! -> 
X15: =#REF! ->  | Y15: =#REF! ->  | Z15: =#REF! ->  | AA15: =#REF! ->  | AB15: =#REF! ->  | AC15: =#REF! ->  | AD15: =#REF! ->  | AE15: =#REF! ->  | AF15: =#REF! -> 
S16: КОДЫ | X16: =#REF! ->  | Y16: =#REF! ->  | Z16: =#REF! ->  | AA16: =#REF! ->  | AB16: =#REF! ->  | AC16: =#REF! ->  | AD16: =#REF! ->  | AE16: =#REF! ->  | AF16: =#REF! -> 
Q17: Форма по КФД | X17: =#REF! ->  | Y17: =#REF! ->  | Z17: =#REF! ->  | AA17: =#REF! ->  | AB17: =#REF! ->  | AC17: =#REF! ->  | AD17: =#REF! ->  | AE17: =#REF! ->  | AF17: =#REF! -> 
K18: от | L18: 31 | M18: января | O18: 2017 г | Q18: Дата | S18: 2017-01-31 | X18: =#REF! ->  | Y18: =#REF! ->  | Z18: =#REF! ->  | AA18: =#REF! ->  | AB18: =#REF! ->  | AC18: =#REF! ->  | AD18: =#REF! ->  | AE18: =#REF! ->  | AF18: =#REF! -> 
X19: =#REF! ->  | Y19: =#REF! ->  | Z19: =#REF! ->  | AA19: =#REF! ->  | AB19: =#REF! ->  | AC19: =#REF! ->  | AD19: =#REF! ->  | AE19: =#REF! ->  | AF19: =#REF! -> 
X20: =#REF! ->  | Y20: =#REF! ->  | Z20: =#REF! ->  | AA20: =#REF! ->  | AB20: =#REF! ->  | AC20: =#REF! ->  | AD20: =#REF! ->  | AE20: =#REF! ->  | AF20: =#REF! -> 
A21: МБДОУ «Детский сад общеразвивающего вида № 16» | Q21: по ОКПО | S21: 59998413 | X21: =#REF! ->  | Y21: =#REF! ->  | Z21: =#REF! ->  | AA21: =#REF! ->  | AB21: =#REF! ->  | AC21: =#REF! ->  | AD21: =#REF! ->  | AE21: =#REF! ->  | AF21: =#REF! -> 
A22: (наименование муниципального бюджетного учреждения) | X22: =#REF! ->  | Y22: =#REF! ->  | Z22: =#REF! ->  | AA22: =#REF! ->  | AB22: =#REF! ->  | AC22: =#REF! ->  | AD22: =#REF! ->  | AE22: =#REF! ->  | AF22: =#REF! -> 
A23: ИНН / КПП | D23: 7116006484/711601001 | X23: =#REF! ->  | Y23: =#REF! ->  | Z23: =#REF! ->  | AA23: =#REF! ->  | AB23: =#REF! ->  | AC23: =#REF! ->  | AD23: =#REF! ->  | AE23: =#REF! ->  | AF23: =#REF! -> 
A24: Единица измерения: рубли | Q24: по ОКЕИ | S24: 383 | X24: =#REF! ->  | Y24: =#REF! ->  | Z24: =#REF! ->  | AA24: =#REF! ->  | AB24: =#REF! ->  | AC24: =#REF! ->  | AD24: =#REF! ->  | AE24: =#REF! ->  | AF24: =#REF! -> 
A25: Комитет по образованию администрации муниципального образования город Новомосковск | X25: =#REF! ->  | Y25: =#REF! ->  | Z25: =#REF! ->  | AA25: =#REF! ->  | AB25: =#REF! ->  | AC25: =#REF! ->  | AD25: =#REF! ->  | AE25: =#REF! ->  | AF25: =#REF! -> 
A26: (наименование отраслевого органа администрации) | X26: =#REF! ->  | Y26: =#REF! ->  | Z26: =#REF! ->  | AA26: =#REF! ->  | AB26: =#REF! ->  | AC26: =#REF! ->  | AD26: =#REF! ->  | AE26: =#REF! ->  | AF26: =#REF! -> 
A27: Тульская область | D27: г. Новомосковск, ул. Депо, д. 21А | X27: =#REF! ->  | Y27: =#REF! ->  | Z27: =#REF! ->  | AA27: =#REF! ->  | AB27: =#REF! ->  | AC27: =#REF! ->  | AD27: =#REF! ->  | AE27: =#REF! ->  | AF27: =#REF! -> 
A28: (адрес фактического местонахождения муниципального бюджетного учреждения) | X28: =#REF! ->  | Y28: =#REF! ->  | Z28: =#REF! ->  | AA28: =#REF! ->  | AB28: =#REF! ->  | AC28: =#REF! ->  | AD28: =#REF! ->  | AE28: =#REF! ->  | AF28: =#REF! -> 
X29: =#REF! ->  | Y29: =#REF! ->  | Z29: =#REF! ->  | AA29: =#REF! ->  | AB29: =#REF! ->  | AC29: =#REF! ->  | AD29: =#REF! ->  | AE29: =#REF! ->  | AF29: =#REF! -> 
A30: I. Сведения о деятельности муниципального бюджетного учреждения | X30: =#REF! ->  | Y30: =#REF! ->  | Z30: =#REF! ->  | AA30: =#REF! ->  | AB30: =#REF! ->  | AC30: =#REF! ->  | AD30: =#REF! ->  | AE30: =#REF! ->  | AF30: =#REF! -> 
A31: 1.1. Цели деятельности муниципального бюджетного учреждения: | X31: =#REF! ->  | Y31: =#REF! ->  | Z31: =#REF! ->  | AA31: =#REF! ->  | AB31: =#REF! ->  | AC31: =#REF! ->  | AD31: =#REF! ->  | AE31: =#REF! ->  | AF31: =#REF! -> 
A32: основной деятельностью учреждения является осуществление | X32: =#REF! ->  | Y32: =#REF! ->  | Z32: =#REF! ->  | AA32: =#REF! ->  | AB32: =#REF! ->  | AC32: =#REF! ->  | AD32: =#REF! ->  | AE32: =#REF! ->  | AF32: =#REF! -> 
A33: образовательной деятельности по образовательным программам | X33: =#REF! ->  | Y33: =#REF! ->  | Z33: =#REF! ->  | AA33: =#REF! ->  | AB33: =#REF! ->  | AC33: =#REF! ->  | AD33: =#REF! ->  | AE33: =#REF! ->  | AF33: =#REF! -> 
A34: дошкольного образования | X34: =#REF! ->  | Y34: =#REF! ->  | Z34: =#REF! ->  | AA34: =#REF! ->  | AB34: =#REF! ->  | AC34: =#REF! ->  | AD34: =#REF! ->  | AE34: =#REF! ->  | AF34: =#REF! -> 
X35: =#REF! ->  | Y35: =#REF! ->  | Z35: =#REF! ->  | AA35: =#REF! ->  | AB35: =#REF! ->  | AC35: =#REF! ->  | AD35: =#REF! ->  | AE35: =#REF! ->  | AF35: =#REF! -> 
X36: =#REF! ->  | Y36: =#REF! ->  | Z36: =#REF! ->  | AA36: =#REF! ->  | AB36: =#REF! ->  | AC36: =#REF! ->  | AD36: =#REF! ->  | AE36: =#REF! ->  | AF36: =#REF! -> 
X37: =#REF! ->  | Y37: =#REF! ->  | Z37: =#REF! ->  | AA37: =#REF! ->  | AB37: =#REF! ->  | AC37: =#REF! ->  | AD37: =#REF! ->  | AE37: =#REF! ->  | AF37: =#REF! -> 
X38: =#REF! ->  | Y38: =#REF! ->  | Z38: =#REF! ->  | AA38: =#REF! ->  | AB38: =#REF! ->  | AC38: =#REF! ->  | AD38: =#REF! ->  | AE38: =#REF! ->  | AF38: =#REF! -> 
X39: =#REF! ->  | Y39: =#REF! ->  | Z39: =#REF! ->  | AA39: =#REF! ->  | AB39: =#REF! ->  | AC39: =#REF! ->  | AD39: =#REF! ->  | AE39: =#REF! ->  | AF39: =#REF! -> 
A40: 1.2. Виды деятельности муниципального бюджетного учреждения: | X40: =#REF! ->  | Y40: =#REF! ->  | Z40: =#REF! ->  | AA40: =#REF! ->  | AB40: =#REF! ->  | AC40: =#REF! ->  | AD40: =#REF! ->  | AE40: =#REF! ->  | AF40: =#REF! -> 
A41: основными видами деятельности учреждения являются: дошкольное образование, предоставление услуг по | X41: =#REF! ->  | Y41: =#REF! ->  | Z41: =#REF! ->  | AA41: =#REF! ->  | AB41: =#REF! ->  | AC41: =#REF! ->  | AD41: =#REF! ->  | AE41: =#REF! ->  | AF41: =#REF! -> 
A42: дневному уходу за детьми | X42: =#REF! ->  | Y42: =#REF! ->  | Z42: =#REF! ->  | AA42: =#REF! ->  | AB42: =#REF! ->  | AC42: =#REF! ->  | AD42: =#REF! ->  | AE42: =#REF! ->  | AF42: =#REF! -> 
X43: =#REF! ->  | Y43: =#REF! ->  | Z43: =#REF! ->  | AA43: =#REF! ->  | AB43: =#REF! ->  | AC43: =#REF! ->  | AD43: =#REF! ->  | AE43: =#REF! ->  | AF43: =#REF! -> 
X44: =#REF! ->  | Y44: =#REF! ->  | Z44: =#REF! ->  | AA44: =#REF! ->  | AB44: =#REF! ->  | AC44: =#REF! ->  | AD44: =#REF! ->  | AE44: =#REF! ->  | AF44: =#REF! -> 
X45: =#REF! ->  | Y45: =#REF! ->  | Z45: =#REF! ->  | AA45: =#REF! ->  | AB45: =#REF! ->  | AC45: =#REF! ->  | AD45: =#REF! ->  | AE45: =#REF! ->  | AF45: =#REF! -> 
X46: =#REF! ->  | Y46: =#REF! ->  | Z46: =#REF! ->  | AA46: =#REF! ->  | AB46: =#REF! ->  | AC46: =#REF! ->  | AD46: =#REF! ->  | AE46: =#REF! ->  | AF46: =#REF! -> 
A47: 1.3. Перечень оказываемых услуг (выполняемых работ), осуществляемых на платной основе: | X47: =#REF! ->  | Y47: =#REF! ->  | Z47: =#REF! ->  | AA47: =#REF! ->  | AB47: =#REF! ->  | AC47: =#REF! ->  | AD47: =#REF! ->  | AE47: =#REF! ->  | AF47: =#REF! -> 
X48: =#REF! ->  | Y48: =#REF! ->  | Z48: =#REF! ->  | AA48: =#REF! ->  | AB48: =#REF! ->  | AC48: =#REF! ->  | AD48: =#REF! ->  | AE48: =#REF! ->  | AF48: =#REF! -> 
X49: =#REF! ->  | Y49: =#REF! ->  | Z49: =#REF! ->  | AA49: =#REF! ->  | AB49: =#REF! ->  | AC49: =#REF! ->  | AD49: =#REF! ->  | AE49: =#REF! ->  | AF49: =#REF! -> 
X50: =#REF! ->  | Y50: =#REF! ->  | Z50: =#REF! ->  | AA50: =#REF! ->  | AB50: =#REF! ->  | AC50: =#REF! ->  | AD50: =#REF! ->  | AE50: =#REF! ->  | AF50: =#REF! -> 
X51: =#REF! ->  | Y51: =#REF! ->  | Z51: =#REF! ->  | AA51: =#REF! ->  | AB51: =#REF! ->  | AC51: =#REF! ->  | AD51: =#REF! ->  | AE51: =#REF! ->  | AF51: =#REF! -> 
X52: =#REF! ->  | Y52: =#REF! ->  | Z52: =#REF! ->  | AA52: =#REF! ->  | AB52: =#REF! ->  | AC52: =#REF! ->  | AD52: =#REF! ->  | AE52: =#REF! ->  | AF52: =#REF! -> 
X53: =#REF! ->  | Y53: =#REF! ->  | Z53: =#REF! ->  | AA53: =#REF! ->  | AB53: =#REF! ->  | AC53: =#REF! ->  | AD53: =#REF! ->  | AE53: =#REF! ->  | AF53: =#REF! -> 
X54: =#REF! ->  | Y54: =#REF! ->  | Z54: =#REF! ->  | AA54: =#REF! ->  | AB54: =#REF! ->  | AC54: =#REF! ->  | AD54: =#REF! ->  | AE54: =#REF! ->  | AF54: =#REF! -> 
X55: =#REF! ->  | Y55: =#REF! ->  | Z55: =#REF! ->  | AA55: =#REF! ->  | AB55: =#REF! ->  | AC55: =#REF! ->  | AD55: =#REF! ->  | AE55: =#REF! ->  | AF55: =#REF! -> 
X56: =#REF! ->  | Y56: =#REF! ->  | Z56: =#REF! ->  | AA56: =#REF! ->  | AB56: =#REF! ->  | AC56: =#REF! ->  | AD56: =#REF! ->  | AE56: =#REF! ->  | AF56: =#REF! -> 
X57: =#REF! ->  | Y57: =#REF! ->  | Z57: =#REF! ->  | AA57: =#REF! ->  | AB57: =#REF! ->  | AC57: =#REF! ->  | AD57: =#REF! ->  | AE57: =#REF! ->  | AF57: =#REF! -> 
X58: =#REF! ->  | Y58: =#REF! ->  | Z58: =#REF! ->  | AA58: =#REF! ->  | AB58: =#REF! ->  | AC58: =#REF! ->  | AD58: =#REF! ->  | AE58: =#REF! ->  | AF58: =#REF! -> 
X59: =#REF! ->  | Y59: =#REF! ->  | Z59: =#REF! ->  | AA59: =#REF! ->  | AB59: =#REF! ->  | AC59: =#REF! ->  | AD59: =#REF! ->  | AE59: =#REF! ->  | AF59: =#REF! -> 
X60: =#REF! ->  | Y60: =#REF! ->  | Z60: =#REF! ->  | AA60: =#REF! ->  | AB60: =#REF! ->  | AC60: =#REF! ->  | AD60: =#REF! ->  | AE60: =#REF! ->  | AF60: =#REF! -> 
X61: =#REF! ->  | Y61: =#REF! ->  | Z61: =#REF! ->  | AA61: =#REF! ->  | AB61: =#REF! ->  | AC61: =#REF! ->  | AD61: =#REF! ->  | AE61: =#REF! ->  | AF61: =#REF! -> 
X62: =#REF! ->  | Y62: =#REF! ->  | Z62: =#REF! ->  | AA62: =#REF! ->  | AB62: =#REF! ->  | AC62: =#REF! ->  | AD62: =#REF! ->  | AE62: =#REF! ->  | AF62: =#REF! -> 
X63: =#REF! ->  | Y63: =#REF! ->  | Z63: =#REF! ->  | AA63: =#REF! ->  | AB63: =#REF! ->  | AC63: =#REF! ->  | AD63: =#REF! ->  | AE63: =#REF! ->  | AF63: =#REF! -> 
X64: =#REF! ->  | Y64: =#REF! ->  | Z64: =#REF! ->  | AA64: =#REF! ->  | AB64: =#REF! ->  | AC64: =#REF! ->  | AD64: =#REF! ->  | AE64: =#REF! ->  | AF64: =#REF! -> 
X65: =#REF! ->  | Y65: =#REF! ->  | Z65: =#REF! ->  | AA65: =#REF! ->  | AB65: =#REF! ->  | AC65: =#REF! ->  | AD65: =#REF! ->  | AE65: =#REF! ->  | AF65: =#REF! -> 
X66: =#REF! ->  | Y66: =#REF! ->  | Z66: =#REF! ->  | AA66: =#REF! ->  | AB66: =#REF! ->  | AC66: =#REF! ->  | AD66: =#REF! ->  | AE66: =#REF! ->  | AF66: =#REF! -> 
X67: =#REF! ->  | Y67: =#REF! ->  | Z67: =#REF! ->  | AA67: =#REF! ->  | AB67: =#REF! ->  | AC67: =#REF! ->  | AD67: =#REF! ->  | AE67: =#REF! ->  | AF67: =#REF! -> 
X68: =#REF! ->  | Y68: =#REF! ->  | Z68: =#REF! ->  | AA68: =#REF! ->  | AB68: =#REF! ->  | AC68: =#REF! ->  | AD68: =#REF! ->  | AE68: =#REF! ->  | AF68: =#REF! -> 
X69: =#REF! ->  | Y69: =#REF! ->  | Z69: =#REF! ->  | AA69: =#REF! ->  | AB69: =#REF! ->  | AC69: =#REF! ->  | AD69: =#REF! ->  | AE69: =#REF! ->  | AF69: =#REF! -> 
X70: =#REF! ->  | Y70: =#REF! ->  | Z70: =#REF! ->  | AA70: =#REF! ->  | AB70: =#REF! ->  | AC70: =#REF! ->  | AD70: =#REF! ->  | AE70: =#REF! ->  | AF70: =#REF! -> 
X71: =#REF! ->  | Y71: =#REF! ->  | Z71: =#REF! ->  | AA71: =#REF! ->  | AB71: =#REF! ->  | AC71: =#REF! ->  | AD71: =#REF! ->  | AE71: =#REF! ->  | AF71: =#REF! -> 
X72: =#REF! ->  | Y72: =#REF! ->  | Z72: =#REF! ->  | AA72: =#REF! ->  | AB72: =#REF! ->  | AC72: =#REF! ->  | AD72: =#REF! ->  | AE72: =#REF! ->  | AF72: =#REF! -> 
X73: =#REF! ->  | Y73: =#REF! ->  | Z73: =#REF! ->  | AA73: =#REF! ->  | AB73: =#REF! ->  | AC73: =#REF! ->  | AD73: =#REF! ->  | AE73: =#REF! ->  | AF73: =#REF! -> 

Sheet 2 часть
A1: II. Показатели финансового состояния муниципального бюджетного учреждения
A3: № п/п | B3: Наименование показателя | N3: Сумма, тыс.руб.
A4: 1 | B4: 2 | N4: 3
A5: 1 | B5: Нефинансовые активы, всего: | N5: 8247
C6: из них:
C7: недвижимое имущество, всего: | N7: 6387
D8: в том числе:
D9: остаточная стоимость | N9: 2758
C10: особо ценное движимое имущество, всего: | N10: 633
D11: в том числе:
D12: остаточная стоимость | N12: 415
A13: 2 | B13: Финансовые активы, всего: | N13: 27.99
C14: из них:
C15: денежные средства учреждения, всего | N15: 48.44
D16: в том числе:
D17: денежные средства учреждения на счетах
D18: денежные средства учреждения, размещенные на депозиты в кредитной организации
C19: иные финансовые документы
C20: дебиторская задолженность по доходам | N20: -20.45
C21: дебиторская задолженность по расходам | N21: 0
A22: 3 | B22: Обязательства, всего: | N22: 803.43
C23: из них:
C24: долговые обязательства
C25: кредиторская задолженность: | N25: 803.43
D26: в том числе:
D27: просроченная кредиторская задолженность | N27: 218.87

Sheet 3 часть 2017
A1: III. Показатели по поступлениям и выплатам муниципального бюджетного (автономного) учреждения
A2: на 31 января 2017 г.
A4: Наименование показателя | B4: Код строки | C4: Код по бюджетной классификации Российской Федерации | D4: Объем финансового обеспечения, руб. (с точностью до двух знаков после запятой - 0,00)
D5: всего | E5: в том числе:
E6: субсидия на финансовое обеспечение выполнения муниципального задания | F6: субсидии, предоставляемые в соответствии с абзацем вторым пункта 1 статьи 78.1 БК РФ | G6: субсидии на осуществление капитальных вложений | H6: средства обязательного медицинского страхования | I6: поступления от оказания услуг (выполнения работ) на платной основе и от иной приносящей доход деятельности
I7: всего | J7: из них гранты
A8: 1 | B8: 2 | C8: 3 | D8: 4 | E8: 5 | F8: 6 | G8: 7 | H8: 8 | I8: 9 | J8: 10
A9: Поступления от доходов, всего: | B9: 100 | C9: X | D9: =SUM(E9:J9) -> 13556180.41 | E9: =SUM(E10:E20) -> 12830820.41 | F9: =SUM(F10:F20) -> 353360 | G9: =SUM(G10:G20) -> 0 | H9: Х | I9: =SUM(I11:I20) -> 372000 | J9: =SUM(J10:J20) -> 0
A10: в том числе: | B10: 110 | D10: =SUM(E10:J10) -> 0 | E10: X | F10: X | G10: X | H10: X | I10: =I12+I18 -> 0 | J10: X
A11: доходы от собственности | D11: =SUM(E11:J11) -> 0
A12: доходы от оказания услуг, работ | B12: 120 | C12: 130 | D12: =SUM(E12:J12) -> 12830820.41 | E12: 12830820.41 | F12: X | G12: X | H12: Х | I12: 0 | J12: 0
A13: доходы от оказания услуг, работ | B13: 120 | C13: 130 | D13: 372000 | F13: X | G13: X | H13: Х | I13: 372000 | J13: 0
A14: доходы от штрафов, пеней, иных сумм принудительного изъятия | B14: 130 | D14: 0 | E14: X | F14: X | G14: X | H14: Х | J14: X
A15: безвозмездные поступления от наднациональных организаций, правительств иностранных государств, международных финансовых организаций | B15: 140 | D15: 0 | E15: X | F15: X | G15: X | H15: Х | J15: X
A16: иные субсидии, предоставленные из бюджета | B16: 150 | C16: 180 | D16: 353360 | E16: X | F16: 353360 | G16: 0 | H16: Х | I16: X | J16: X
A17: иные субсидии, предоставленные из бюджета | B17: 150 | C17: 180 | D17: 0 | E17: X | F17: 0 | G17: 0 | H17: Х | I17: X | J17: X
A18: прочие доходы | B18: 160 | C18: 180 | D18: 0 | E18: X | F18: X | G18: X | H18: Х | I18: 0
A19: доходы от операций с активами | B19: 180 | C19: X | D19: 0 | E19: X | F19: X | G19: X | H19: Х | I19: 0 | J19: X
H20: Х
A21: Выплаты по расходам, всего: | B21: 200 | C21: X | D21: =SUM(E21:J21) -> 13556180.41 | E21: =E22+SUM(E26:E34) -> 12830820.41 | F21: =F22+SUM(F26:F34) -> 353360 | G21: =G22+SUM(G26:G34) -> 0 | H21: Х | I21: =I22+SUM(I26:I34) -> 372000 | J21: =J22+SUM(J26:J34) -> 0 | K21: =D21-D9 -> 0
A22: в том числе на: выплаты персоналу всего: | B22: 210 | C22: Х | D22: 7846983 | E22: =SUM(E23:E25) -> 7814823 | F22: =SUM(F23:F25) -> 32160 | G22: =SUM(G23:G25) -> 0 | H22: Х | I22: =SUM(I23:I25) -> 0 | J22: =SUM(J23:J25) -> 0
A23: из них: | B23: 211 | C23: 111 | D23: 6031113 | E23: 6006393 | F23: 24720 | H23: Х | I23: 0
A24: оплата труда и начисления на выплаты по оплате труда | D24: 0
A25: оплата труда и начисления на выплаты по оплате труда | C25: 119 | D25: 1815870 | E25: 1808430 | F25: 7440 | I25: 0
A26: социальные и иные выплаты населению, всего | B26: 220 | C26: 313 | D26: 0 | H26: Х
A27: социальные и иные выплаты населению, всего | B27: 220 | C27: 321 | D27: 321200 | E27: 0 | F27: 321200 | H27: Х
A28: социальные и иные выплаты населению, всего | B28: 220 | C28: 350 | D28: 0 | E28: 0 | H28: Х
A29: уплату налогов, сборов и иных платежей, всего | B29: 230 | C29: 851 | D29: 93261 | E29: 93261 | H29: Х | I29: 0
A30: уплату налогов, сборов и иных платежей, всего | B30: 230 | C30: 852 | D30: 0 | E30: 0 | H30: Х | I30: 0
A31: уплату налогов, сборов и иных платежей, всего | B31: 230 | C31: 853 | D31: 10000 | E31: 10000 | H31: Х
A32: безвозмездные перечисления организациям | B32: 240 | D32: 0 | H32: Х
A33: прочие расходы (кроме расходов на закупку товаров, работ, услуг) | B33: 250 | C33: 112 | D33: =SUM(E33:J33) -> 1200 | E33: 1200 | H33: Х
A34: расходы на закупку товаров, работ, услуг, всего | B34: 260 | C34: X | D34: =SUM(E34:J34) -> 5283536.41 | E34: =SUM(E35:E36) -> 4911536.41 | F34: =SUM(F35:F36) -> 0 | G34: =SUM(G35:G36) -> 0 | H34: Х | I34: =SUM(I35:I36) -> 372000 | J34: =SUM(J35:J36) -> 0
A35: расходы на закупку товаров, работ, услуг, всего | B35: 260 | C35: 243 | D35: =SUM(E35:J35) -> 0 | E35: 0 | F35: 0 | H35: Х | I35: 0
A36: расходы на закупку товаров, работ, услуг, всего | B36: 260 | C36: 244 | D36: =SUM(E36:J36) -> 5283536.41 | E36: 4911536.41 | F36: 0 | H36: Х | I36: 372000
A37: Поступление финансовых активов, всего: | B37: 300 | C37: X | D37: =SUM(E37:G37)+I37 -> 0 | E37: =SUM(E38:E40) -> 0 | F37: =SUM(F38:F40) -> 0 | G37: =SUM(G38:G40) -> 0 | H37: Х | I37: =SUM(I38:I40) -> 0 | J37: =SUM(J38:J40) -> 0
A38: из них: | B38: 310 | D38: 0 | E38: 0 | F38: 0 | G38: 0 | H38: Х | I38: 0 | J38: 0
A39: увеличение остатков средств
A40: прочие поступления | B40: 320 | D40: =SUM(E40:G40)+I40 -> 0 | E40: 0 | F40: 0 | G40: 0 | H40: Х | I40: 0 | J40: 0
A41: Выбытие финансовых активов, всего | B41: 400 | D41: =SUM(E41:G41)+I41 -> 0 | E41: =SUM(E42:E44) -> 0 | F41: =SUM(F42:F44) -> 0 | G41: =SUM(G42:G44) -> 0 | H41: Х | I41: =SUM(I42:I44) -> 0 | J41: =SUM(J42:J44) -> 0
A42: Из них: | B42: 410 | D42: 0 | E42: 0 | F42: 0 | G42: 0 | H42: Х | I42: 0 | J42: 0
A43: уменьшение остатков средств
A44: прочие выбытия | B44: 420 | D44: =SUM(E44:G44)+I44 -> 0 | E44: 0 | F44: 0 | G44: 0 | H44: Х | I44: 0 | J44: 0
A45: Остаток средств на начало года | B45: 500 | C45: X | D45: =SUM(E45:G45)+I45 -> 75785.61 | E45: =SUM(E46:E56) -> 37701.57 | F45: =SUM(F46:F56) -> 0 | G45: =SUM(G46:G56) -> 0 | H45: Х | I45: =SUM(I46:I56) -> 38084.04 | J45: =SUM(J46:J56) -> 0
A46: Остаток средств на начало года | B46: 500 | C46: 111 | D46: =SUM(E46:J46) -> 37701.57 | E46: 37701.57 | F46: =SUM(G46:L46) -> 0 | I46: 0
A47: Остаток средств на начало года | B47: 500 | C47: 119 | D47: =SUM(E47:J47) -> 0 | E47: 0 | I47: 0
A48: Остаток средств на начало года | B48: 500 | C48: 313 | D48: 0
A49: Остаток средств на начало года | B49: 500 | C49: 321 | D49: 0
A50: Остаток средств на начало года | B50: 500 | C50: 350 | D50: 0
A51: Остаток средств на начало года | B51: 500 | C51: 851 | D51: 0
A52: Остаток средств на начало года | B52: 500 | C52: 852 | D52: 0
A53: Остаток средств на начало года | B53: 500 | C53: 853 | D53: 0
A54: Остаток средств на начало года | B54: 500 | C54: 112 | D54: 0
A55: Остаток средств на начало года | B55: 500 | C55: 243 | D55: 0
A56: Остаток средств на начало года | B56: 500 | C56: 244 | D56: 38084.04 | E56: 0 | F56: 0 | I56: 38084.04
A57: Остаток средств на конец года | B57: 600 | C57: X | D57: 0 | E57: 0 | F57: 0 | G57: 0 | H57: Х | I57: 0 | J57: 0

Sheet 3 часть 2018
A1: III. Показатели по поступлениям и выплатам муниципального бюджетного (автономного) учреждения
A2: на 01 января 2018 г.
A4: Наименование показателя | B4: Код строки | C4: Код по бюджетной классификации Российской Федерации | D4: Объем финансового обеспечения, руб. (с точностью до двух знаков после запятой - 0,00)
D5: всего | E5: в том числе:
E6: субсидия на финансовое обеспечение выполнения муниципального задания | F6: субсидии, предоставляемые в соответствии с абзацем вторым пункта 1 статьи 78.1 БК РФ | G6: субсидии на осуществление капитальных вложений | H6: средства обязательного медицинского страхования | I6: поступления от оказания услуг (выполнения работ) на платной основе и от иной приносящей доход деятельности
I7: всего | J7: из них гранты
A8: 1 | B8: 2 | C8: 3 | D8: 4 | E8: 5 | F8: 6 | G8: 7 | H8: 8 | I8: 9 | J8: 10
A9: Поступления от доходов, всего: | B9: 100 | C9: X | D9: =SUM(E9:J9) -> 14067520 | E9: =SUM(E10:E20) -> 13342160 | F9: =SUM(F10:F20) -> 353360 | G9: =SUM(G10:G20) -> 0 | H9: Х | I9: =SUM(I11:I20) -> 372000 | J9: =SUM(J10:J20) -> 0
A10: в том числе: | B10: 110 | D10: =SUM(E10:J10) -> 0 | E10: X | F10: X | G10: X | H10: X | I10: =I12+I18 -> 0 | J10: X
A11: доходы от собственности | D11: =SUM(E11:J11) -> 0
A12: доходы от оказания услуг, работ | B12: 120 | C12: 130 | D12: =SUM(E12:J12) -> 13342160 | E12: 13342160 | F12: X | G12: X | H12: Х | I12: 0 | J12: 0
A13: доходы от оказания услуг, работ | B13: 120 | C13: 130 | D13: 372000 | F13: X | G13: X | H13: Х | I13: 372000 | J13: 0
A14: доходы от штрафов, пеней, иных сумм принудительного изъятия | B14: 130 | D14: 0 | E14: X | F14: X | G14: X | H14: Х | J14: X
A15: безвозмездные поступления от наднациональных организаций, правительств иностранных государств, международных финансовых организаций | B15: 140 | D15: 0 | E15: X | F15: X | G15: X | H15: Х | J15: X
A16: иные субсидии, предоставленные из бюджета | B16: 150 | C16: 180 | D16: 353360 | E16: X | F16: 353360 | G16: 0 | H16: Х | I16: X | J16: X
A17: иные субсидии, предоставленные из бюджета | B17: 150 | C17: 180 | D17: 0 | E17: X | F17: 0 | G17: 0 | H17: Х | I17: X | J17: X
A18: прочие доходы | B18: 160 | C18: 180 | D18: 0 | E18: X | F18: X | G18: X | H18: Х | I18: 0
A19: доходы от операций с активами | B19: 180 | C19: X | D19: 0 | E19: X | F19: X | G19: X | H19: Х | I19: 0 | J19: X
H20: Х
A21: Выплаты по расходам, всего: | B21: 200 | C21: X | D21: =SUM(E21:J21) -> 14067520 | E21: =E22+SUM(E26:E34) -> 13342160 | F21: =F22+SUM(F26:F34) -> 353360 | G21: =G22+SUM(G26:G34) -> 0 | H21: Х | I21: =I22+SUM(I26:I34) -> 372000 | J21: =J22+SUM(J26:J34) -> 0 | K21: =D21-D9 -> 0
A22: в том числе на: выплаты персоналу всего: | B22: 210 | C22: Х | D22: 8533960 | E22: =SUM(E23:E25) -> 8501800 | F22: =SUM(F23:F25) -> 32160 | G22: =SUM(G23:G25) -> 0 | H22: Х | I22: =SUM(I23:I25) -> 0 | J22: =SUM(J23:J25) -> 0
A23: из них: | B23: 211 | C23: 111 | D23: 6566080 | E23: 6541360 | F23: 24720 | H23: Х
A24: оплата труда и начисления на выплаты по оплате труда | D24: 0
A25: оплата труда и начисления на выплаты по оплате труда | C25: 119 | D25: 1967880 | E25: 1960440 | F25: 7440
A26: социальные и иные выплаты населению, всего | B26: 220 | C26: 313 | D26: 0 | H26: Х
A27: социальные и иные выплаты населению, всего | B27: 220 | C27: 321 | D27: 321200 | E27: 0 | F27: 321200 | H27: Х
A28: социальные и иные выплаты населению, всего | B28: 220 | C28: 350 | D28: 0 | H28: Х
A29: уплату налогов, сборов и иных платежей, всего | B29: 230 | C29: 851 | D29: 48000 | E29: 48000 | H29: Х
A30: уплату налогов, сборов и иных платежей, всего | B30: 230 | C30: 852 | D30: 0 | E30: 0 | H30: Х
A31: уплату налогов, сборов и иных платежей, всего | B31: 230 | C31: 853 | D31: 0 | H31: Х
A32: безвозмездные перечисления организациям | B32: 240 | D32: 0 | H32: Х
A33: прочие расходы (кроме расходов на закупку товаров, работ, услуг) | B33: 250 | C33: 112 | D33: =SUM(E33:J33) -> 0 | E33: 0 | H33: Х
A34: расходы на закупку товаров, работ, услуг, всего | B34: 260 | C34: X | D34: =SUM(E34:J34) -> 5164360 | E34: =SUM(E35:E36) -> 4792360 | F34: =SUM(F35:F36) -> 0 | G34: =SUM(G35:G36) -> 0 | H34: Х | I34: =SUM(I35:I36) -> 372000 | J34: =SUM(J35:J36) -> 0
A35: расходы на закупку товаров, работ, услуг, всего | B35: 260 | C35: 243 | D35: =SUM(E35:J35) -> 0 | F35: 0 | H35: Х
A36: расходы на закупку товаров, работ, услуг, всего | B36: 260 | C36: 244 | D36: =SUM(E36:J36) -> 5164360 | E36: 4792360 | H36: Х | I36: 372000
A37: Поступление финансовых активов, всего: | B37: 300 | C37: X | D37: =SUM(E37:G37)+I37 -> 0 | E37: =SUM(E38:E40) -> 0 | F37: =SUM(F38:F40) -> 0 | G37: =SUM(G38:G40) -> 0 | H37: Х | I37: =SUM(I38:I40) -> 0 | J37: =SUM(J38:J40) -> 0
A38: из них: | B38: 310 | D38: 0 | E38: 0 | F38: 0 | G38: 0 | H38: Х | I38: 0 | J38: 0
A39: увеличение остатков средств
A40: прочие поступления | B40: 320 | D40: =SUM(E40:G40)+I40 -> 0 | E40: 0 | F40: 0 | G40: 0 | H40: Х | I40: 0 | J40: 0
A41: Выбытие финансовых активов, всего | B41: 400 | D41: =SUM(E41:G41)+I41 -> 0 | E41: =SUM(E42:E44) -> 0 | F41: =SUM(F42:F44) -> 0 | G41: =SUM(G42:G44) -> 0 | H41: Х | I41: =SUM(I42:I44) -> 0 | J41: =SUM(J42:J44) -> 0
A42: Из них: | B42: 410 | D42: 0 | E42: 0 | F42: 0 | G42: 0 | H42: Х | I42: 0 | J42: 0
A43: уменьшение остатков средств
A44: прочие выбытия | B44: 420 | D44: =SUM(E44:G44)+I44 -> 0 | E44: 0 | F44: 0 | G44: 0 | H44: Х | I44: 0 | J44: 0
A45: Остаток средств на начало года | B45: 500 | C45: X | D45: =SUM(E45:G45)+I45 -> 0 | E45: =SUM(E46:E56) -> 0 | F45: =SUM(F46:F56) -> 0 | G45: =SUM(G46:G56) -> 0 | H45: Х | I45: =SUM(I46:I56) -> 0 | J45: =SUM(J46:J56) -> 0
A46: Остаток средств на начало года | B46: 500 | C46: 111 | D46: =SUM(E46:J46) -> 0
A47: Остаток средств на начало года | B47: 500 | C47: 119 | D47: =SUM(E47:J47) -> 0
A48: Остаток средств на начало года | B48: 500 | C48: 313 | D48: 0
A49: Остаток средств на начало года | B49: 500 | C49: 321 | D49: 0
A50: Остаток средств на начало года | B50: 500 | C50: 350 | D50: 0
A51: Остаток средств на начало года | B51: 500 | C51: 851 | D51: 0
A52: Остаток средств на начало года | B52: 500 | C52: 852 | D52: 0
A53: Остаток средств на начало года | B53: 500 | C53: 853 | D53: 0
A54: Остаток средств на начало года | B54: 500 | C54: 112 | D54: 0
A55: Остаток средств на начало года | B55: 500 | C55: 243 | D55: 0
A56: Остаток средств на начало года | B56: 500 | C56: 244 | D56: 0
A57: Остаток средств на конец года | B57: 600 | C57: X | D57: 0 | E57: 0 | F57: 0 | G57: 0 | H57: Х | I57: 0 | J57: 0

Sheet 3 часть 2019
A1: III. Показатели по поступлениям и выплатам муниципального бюджетного (автономного) учреждения
A2: на 1 января 2019 г.
A4: Наименование показателя | B4: Код строки | C4: Код по бюджетной классификации Российской Федерации | D4: Объем финансового обеспечения, руб. (с точностью до двух знаков после запятой - 0,00)
D5: всего | E5: в том числе:
E6: субсидия на финансовое обеспечение выполнения муниципального задания | F6: субсидии, предоставляемые в соответствии с абзацем вторым пункта 1 статьи 78.1 БК РФ | G6: субсидии на осуществление капитальных вложений | H6: средства обязательного медицинского страхования | I6: поступления от оказания услуг (выполнения работ) на платной основе и от иной приносящей доход деятельности
I7: всего | J7: из них гранты
A8: 1 | B8: 2 | C8: 3 | D8: 4 | E8: 5 | F8: 6 | G8: 7 | H8: 8 | I8: 9 | J8: 10
A9: Поступления от доходов, всего: | B9: 100 | C9: X | D9: =SUM(E9:J9) -> 15528370 | E9: =SUM(E10:E20) -> 13803010 | F9: =SUM(F10:F20) -> 1353360 | G9: =SUM(G10:G20) -> 0 | H9: Х | I9: =SUM(I11:I20) -> 372000 | J9: =SUM(J10:J20) -> 0
A10: в том числе: | B10: 110 | D10: =SUM(E10:J10) -> 0 | E10: X | F10: X | G10: X | H10: X | I10: =I12+I18 -> 0 | J10: X
A11: доходы от собственности | D11: =SUM(E11:J11) -> 0
A12: доходы от оказания услуг, работ | B12: 120 | C12: 130 | D12: =SUM(E12:J12) -> 13803010 | E12: 13803010 | F12: X | G12: X | H12: Х | I12: 0 | J12: 0
A13: доходы от оказания услуг, работ | B13: 120 | C13: 130 | D13: 372000 | F13: X | G13: X | H13: Х | I13: 372000 | J13: 0
A14: доходы от штрафов, пеней, иных сумм принудительного изъятия | B14: 130 | D14: 0 | E14: X | F14: X | G14: X | H14: Х | J14: X
A15: безвозмездные поступления от наднациональных организаций, правительств иностранных государств, международных финансовых организаций | B15: 140 | D15: 0 | E15: X | F15: X | G15: X | H15: Х | J15: X
A16: иные субсидии, предоставленные из бюджета | B16: 150 | C16: 180 | D16: 1353360 | E16: X | F16: 1353360 | G16: 0 | H16: Х | I16: X | J16: X
A17: иные субсидии, предоставленные из бюджета | B17: 150 | C17: 180 | D17: 0 | E17: X | F17: 0 | G17: 0 | H17: Х | I17: X | J17: X
A18: прочие доходы | B18: 160 | C18: 180 | D18: 0 | E18: X | F18: X | G18: X | H18: Х | I18: 0
A19: доходы от операций с активами | B19: 180 | C19: X | D19: 0 | E19: X | F19: X | G19: X | H19: Х | I19: 0 | J19: X
H20: Х
A21: Выплаты по расходам, всего: | B21: 200 | C21: X | D21: =SUM(E21:J21) -> 15528370 | E21: =E22+SUM(E26:E34) -> 13803010 | F21: =F22+SUM(F26:F34) -> 1353360 | G21: =G22+SUM(G26:G34) -> 0 | H21: Х | I21: =I22+SUM(I26:I34) -> 372000 | J21: =J22+SUM(J26:J34) -> 0 | K21: =D21-D9 -> 0
A22: в том числе на: выплаты персоналу всего: | B22: 210 | C22: Х | D22: 8913870 | E22: =SUM(E23:E25) -> 8881710 | F22: =SUM(F23:F25) -> 32160 | G22: =SUM(G23:G25) -> 0 | H22: Х | I22: =SUM(I23:I25) -> 0 | J22: =SUM(J23:J25) -> 0
A23: из них: | B23: 211 | C23: 111 | D23: 6830730 | E23: 6806010 | F23: 24720 | H23: Х
A24: оплата труда и начисления на выплаты по оплате труда | D24: 0
A25: оплата труда и начисления на выплаты по оплате труда | C25: 119 | D25: 2083140 | E25: 2075700 | F25: 7440
A26: социальные и иные выплаты населению, всего | B26: 220 | C26: 313 | D26: 0 | H26: Х
A27: социальные и иные выплаты населению, всего | B27: 220 | C27: 321 | D27: 321200 | E27: 0 | F27: 321200 | H27: Х
A28: социальные и иные выплаты населению, всего | B28: 220 | C28: 350 | D28: 0 | H28: Х
A29: уплату налогов, сборов и иных платежей, всего | B29: 230 | C29: 851 | D29: 48000 | E29: 48000 | H29: Х
A30: уплату налогов, сборов и иных платежей, всего | B30: 230 | C30: 852 | D30: 0 | E30: 0 | H30: Х
A31: уплату налогов, сборов и иных платежей, всего | B31: 230 | C31: 853 | D31: 0 | H31: Х
A32: безвозмездные перечисления организациям | B32: 240 | D32: 0 | H32: Х
A33: прочие расходы (кроме расходов на закупку товаров, работ, услуг) | B33: 250 | C33: 112 | D33: =SUM(E33:J33) -> 0 | E33: 0 | H33: Х
A34: расходы на закупку товаров, работ, услуг, всего | B34: 260 | C34: X | D34: =SUM(E34:J34) -> 6245300 | E34: =SUM(E35:E36) -> 4873300 | F34: =SUM(F35:F36) -> 1000000 | G34: =SUM(G35:G36) -> 0 | H34: Х | I34: =SUM(I35:I36) -> 372000 | J34: =SUM(J35:J36) -> 0
A35: расходы на закупку товаров, работ, услуг, всего | B35: 260 | C35: 243 | D35: =SUM(E35:J35) -> 0 | F35: 0 | H35: Х
A36: расходы на закупку товаров, работ, услуг, всего | B36: 260 | C36: 244 | D36: =SUM(E36:J36) -> 6245300 | E36: 4873300 | F36: 1000000 | H36: Х | I36: 372000
A37: Поступление финансовых активов, всего: | B37: 300 | C37: X | D37: =SUM(E37:G37)+I37 -> 0 | E37: =SUM(E38:E40) -> 0 | F37: =SUM(F38:F40) -> 0 | G37: =SUM(G38:G40) -> 0 | H37: Х | I37: =SUM(I38:I40) -> 0 | J37: =SUM(J38:J40) -> 0
A38: из них: | B38: 310 | D38: 0 | E38: 0 | F38: 0 | G38: 0 | H38: Х | I38: 0 | J38: 0
A39: увеличение остатков средств
A40: прочие поступления | B40: 320 | D40: =SUM(E40:G40)+I40 -> 0 | E40: 0 | F40: 0 | G40: 0 | H40: Х | I40: 0 | J40: 0
A41: Выбытие финансовых активов, всего | B41: 400 | D41: =SUM(E41:G41)+I41 -> 0 | E41: =SUM(E42:E44) -> 0 | F41: =SUM(F42:F44) -> 0 | G41: =SUM(G42:G44) -> 0 | H41: Х | I41: =SUM(I42:I44) -> 0 | J41: =SUM(J42:J44) -> 0
A42: Из них: | B42: 410 | D42: 0 | E42: 0 | F42: 0 | G42: 0 | H42: Х | I42: 0 | J42: 0
A43: уменьшение остатков средств
A44: прочие выбытия | B44: 420 | D44: =SUM(E44:G44)+I44 -> 0 | E44: 0 | F44: 0 | G44: 0 | H44: Х | I44: 0 | J44: 0
A45: Остаток средств на начало года | B45: 500 | C45: X | D45: =SUM(E45:G45)+I45 -> 0 | E45: =SUM(E46:E56) -> 0 | F45: =SUM(F46:F56) -> 0 | G45: =SUM(G46:G56) -> 0 | H45: Х | I45: =SUM(I46:I56) -> 0 | J45: =SUM(J46:J56) -> 0
A46: Остаток средств на начало года | B46: 500 | C46: 111 | D46: =SUM(E46:J46) -> 0
A47: Остаток средств на начало года | B47: 500 | C47: 119 | D47: =SUM(E47:J47) -> 0
A48: Остаток средств на начало года | B48: 500 | C48: 313 | D48: 0
A49: Остаток средств на начало года | B49: 500 | C49: 321 | D49: 0
A50: Остаток средств на начало года | B50: 500 | C50: 350 | D50: 0
A51: Остаток средств на начало года | B51: 500 | C51: 851 | D51: 0
A52: Остаток средств на начало года | B52: 500 | C52: 852 | D52: 0
A53: Остаток средств на начало года | B53: 500 | C53: 853 | D53: 0
A54: Остаток средств на начало года | B54: 500 | C54: 112 | D54: 0
A55: Остаток средств на начало года | B55: 500 | C55: 243 | D55: 0
A56: Остаток средств на начало года | B56: 500 | C56: 244 | D56: 0
A57: Остаток средств на конец года | B57: 600 | C57: X | D57: 0 | E57: 0 | F57: 0 | G57: 0 | H57: Х | I57: 0 | J57: 0

Sheet 4 часть
A1: IV. Показатели выплат по расходам на закупку товаров, работ, услуг
A2: муниципального бюджетного (автономного) учреждения
A3: на 31 января 2017 г.
A5: Наименование показателя | B5: Код строки | C5: Год начала закупки | D5: Сумма выплат по расходам на закупку товаров, работ и услуг, руб. (с точностью до двух знаков после запятой - 0,00)
D6: всего на закупки | G6: в том числе:
G7: в соответствии с Федеральным законом от 5 апреля 2013 г. N 44-ФЗ "О контрактной системе в сфере закупок товаров, работ, услуг для обеспечения государственных и муниципальных нужд" | J7: в соответствии с Федеральным законом от 18 июля 2011 г. N 223-ФЗ "О закупках товаров, работ, услуг отдельными видами юридических лиц"
D8: на 2017 г. очередной финансовый год | E8: на 2018 г. | F8: на 2019 г. | G8: на 2017 г. очередной финансовый год | H8: на 2018 г. | I8: на 2019 г. | J8: на 2017 г. очередной финансовый год | K8: на 2018 г. | L8: на 2019 г.
E9: 1-ый год планового периода | F9: 2-ой год планового периода | H9: 1-ый год планового периода | I9: 2-ой год планового периода | K9: 1-ый год планового периода | L9: 2-ой год планового периода
A10: 1 | B10: 2 | C10: 3 | D10: 4 | E10: 5 | F10: 6 | G10: 7 | H10: 8 | I10: 9 | J10: 10 | K10: 11 | L10: 12
A11: Выплаты по расходам на закупку товаров, работ, услуг всего: | B11: 0001 | C11: X | D11: =SUM(G11,J11) -> 5321620.45 | E11: =SUM(E12,E13) -> 5164360 | F11: =SUM(F12,F13) -> 6245300 | G11: ='3 часть 2017'!D56+'3 часть 2017'!D55+'3 часть 2017'!D34 -> 5321620.45 | H11: ='3 часть 2018'!D34 -> 5164360 | I11: ='3 часть 2019'!D34 -> 6245300 | J11: =SUM(J12,J13) -> 0 | K11: =SUM(K12,K13) -> 0 | L11: =SUM(L12,L13) -> 0
A12: в том числе: на оплату контрактов заключенных до начала очередного финансового года: | B12: 1001 | C12: X | D12: =SUM(G12,J12) -> 3023426.73 | E12: =SUM(H12,K12) -> 1224594.05 | F12: =SUM(I12,L12) -> 1224594.05 | G12: 3023426.73 | H12: 1224594.05 | I12: 1224594.05 | J12: 0 | K12: 0 | L12: 0
A13: на закупку товаров работ, услуг по году начала закупки: | B13: 2001 | C13: 2017 | D13: =SUM(G13,J13) -> 2298193.72 | E13: =SUM(H13,K13) -> 3939765.95 | F13: =SUM(I13,L13) -> 5020705.95 | G13: =G11-G12 -> 2298193.72 | H13: =H11-H12 -> 3939765.95 | I13: =I11-I12 -> 5020705.95 | J13: 0 | K13: 0 | L13: 0

Sheet 5 часть
A1: V. Справочная информация
A3: Наименование показателя | B3: Код строки | C3: Сумма (тыс. руб.)
A4: 1 | B4: 2 | C4: 3
A5: Объем публичных обязательств, всего: | B5: 10
A6: Объем бюджетных инвестиций (в части переданных полномочий муниципального заказчика в соответствии с Бюджетным кодексом Российской Федерации), всего: | B6: 20
A7: Объем средств, поступивших во временное распоряжение, всего: | B7: 30
D10: Лаврова О.В.
A11: Руководитель финансово-экономической службы
C12: (подпись) | D12: (расшифровка подписи)
A13: Главный бухгалтер | D13: Зайцева И.А.
C14: (подпись) | D14: (расшифровка подписи)
A15: Исполнитель экономист | D15: Байкина С.М.
A16: (должность) | C16: (подпись) | D16: (расшифровка подписи)
A17: Тел. ______________
A18: "31" января 2017 г.
